bitfinex/quotes_BTCUSD_20241123
["timestamp","ask_amount","ask_price","bid_price","bid_amount"]
[1732366851407,0.22610023,98482.0,98476.0,0.0063276]
[1732366851613,0.22610023,98482.0,98477.0,0.0063276]
[1732366851815,0.22610023,98482.0,98472.0,0.05466768]
[1732366852257,0.22610023,98482.0,98472.0,0.20466768]
[1732366852703,0.19227023,98482.0,98472.0,0.20466768]
[1732366852925,0.19227023,98482.0,98473.0,0.00632768]
[1732366853359,0.19227023,98482.0,98474.0,0.00632769]
[1732366853480,0.19227023,98482.0,98475.0,0.00632769]
[1732366854136,0.19227023,98482.0,98473.0,0.00632768]
[1732366854558,0.15177776,98482.0,98473.0,0.00632768]
[1732366855108,0.15177776,98482.0,98472.0,0.20466768]
[1732366855319,0.22727776,98482.0,98472.0,0.20466768]
[1732366856741,0.17691382,98482.0,98472.0,0.20466768]
[1732366861417,0.17691382,98482.0,98471.0,0.0498196]
[1732366862684,0.06564382,98482.0,98471.0,0.0498196]
[1732366862883,0.06564382,98482.0,98472.0,0.01645212]
[1732366863039,0.06564382,98482.0,98473.0,0.01645212]
[1732366863240,0.06564382,98482.0,98474.0,0.01645212]
[1732366863465,0.06564382,98482.0,98475.0,0.01645212]
[1732366863673,0.06564382,98482.0,98476.0,0.01645212]
[1732366863872,0.0008602,98482.0,98477.0,0.01645212]
[1732366864096,0.0008602,98482.0,98478.0,0.01645212]
[1732366864300,0.0008602,98482.0,98479.0,0.01645212]
[1732366864500,0.0008602,98482.0,98480.0,0.01645212]
[1732366864706,0.0008602,98482.0,98481.0,0.00632774]
[1732366864862,0.0008602,98482.0,98481.0,0.01645212]
[1732366865899,0.0008602,98482.0,98481.0,0.00632774]
[1732366866296,0.0008602,98482.0,98481.0,0.0465738]
[1732366866498,0.0008602,98482.0,98481.0,0.00632774]
[1732366869062,0.03954979,98486.0,98474.0,0.023]
[1732366869266,0.03954979,98486.0,98481.0,0.00632774]
[1732366871080,0.03954979,98486.0,98481.0,0.04704229]
[1732366871290,0.03954979,98486.0,98474.0,0.173]
[1732366871512,0.03954979,98486.0,98474.0,0.19045137]
[1732366871513,0.0458,98485.0,98474.0,0.19045137]
[1732366872291,0.0458,98485.0,98474.0,0.04045137]
[1732366872491,0.0458,98485.0,98473.0,0.023]
[1732366872688,0.0458,98485.0,98473.0,0.173]
[1732366873319,0.0458,98485.0,98475.0,0.05466768]
[1732366873519,0.0458,98485.0,98473.0,0.173]
[1732366873730,0.0458,98485.0,98473.0,0.023]
[1732366874408,0.0458,98485.0,98475.0,0.05466768]
[1732366875969,0.0475204,98485.0,98475.0,0.05466768]
[1732366878682,0.0475204,98485.0,98473.0,0.023]
[1732366879706,0.0475204,98485.0,98472.0,0.04183382]
[1732366879917,0.0461,98481.0,98473.0,0.023]
[1732366882312,0.0461,98481.0,98462.0,0.00901377]
[1732366882554,0.0461,98481.0,98470.0,0.05466768]
[1732366886695,0.0461,98481.0,98470.0,0.09541379]
[1732366887608,0.0461,98481.0,98470.0,0.05466768]
[1732366890709,0.0461,98481.0,98470.0,0.05552778]
[1732366891344,0.0473693,98481.0,98470.0,0.05552778]
[1732366893893,0.04836931,98480.0,98470.0,0.05552778]
[1732366894136,0.04836931,98480.0,98470.0,0.09728209]
[1732366894354,0.0806,98479.0,98470.0,0.04261441]
[1732366894562,0.0471,98478.0,98470.0,0.04261441]
[1732366898640,0.08186931,98477.0,98470.0,0.04261441]
[1732366898875,0.0471,98476.0,98470.0,0.04261441]
[1732366899099,0.0806,98474.0,98470.0,0.04261441]
[1732366899306,0.04836945,98473.0,98470.0,0.04261441]
[1732366899711,0.0471,98471.0,98470.0,0.04261441]
[1732366899889,0.04836945,98471.0,98470.0,0.04261441]
[1732366900122,0.0482253,98471.0,98470.0,0.04261441]
[1732366901679,0.1288253,98471.0,98470.0,0.04261441]
[1732366909538,0.1285721,98471.0,98470.0,0.04261441]
[1732366913614,0.0476,98470.0,98458.0,0.15]
[1732366913849,0.08186945,98471.0,98458.0,0.15]
[1732366913850,0.00126949,98469.0,98458.0,0.15]
[1732366914066,0.00126949,98470.0,98458.0,0.15]
[1732366914896,0.00126949,98470.0,98450.0,0.023]
[1732366915110,0.07314567,98468.0,98440.0,0.05466768]
[1732366915318,0.04936952,98467.0,98441.0,0.10201427]
[1732366915545,0.04936952,98467.0,98442.0,0.15]
[1732366915733,0.04936952,98467.0,98444.0,0.15]
[1732366916953,0.04936952,98467.0,98458.0,0.0008603]
[1732366918158,0.0767,98466.0,98458.0,0.0008603]
[1732366918364,0.0767,98461.0,98431.0,0.023]
[1732366918590,0.0481,98458.0,98432.0,0.10201427]
[1732366918959,0.0481,98455.0,98432.0,0.10201427]
[1732366920346,0.0481,98455.0,98431.0,0.023]
[1732366920347,0.0481,98453.0,98428.0,0.23521792]
[1732366920548,0.0481,98451.0,98430.0,0.05466768]
[1732366920705,0.0481,98449.0,98430.0,0.05466768]
[1732366921732,0.0481,98449.0,98431.0,0.00050852]
[1732366922149,0.0481,98449.0,98439.0,0.05466768]
[1732366923700,0.0481,98449.0,98430.0,0.00050852]
[1732366923908,0.0481,98449.0,98439.0,0.05466768]
[1732366925082,0.1237,98448.0,98439.0,0.05466768]
[1732366925288,0.0454,98447.0,98430.0,0.05466768]
[1732366932479,0.0783,98446.0,98430.0,0.05466768]
[1732366932849,0.0783,98444.0,98429.0,0.19217109]
[1732366933056,0.0667309,98444.0,98429.0,0.29418536]
[1732366933293,0.0667309,98444.0,98429.0,0.04217109]
[1732366933513,0.0017212,98449.0,98429.0,0.04217109]
[1732366935377,0.10328416,98448.0,98429.0,0.04217109]
[1732366935950,0.1294,98447.0,98429.0,0.04217109]
[1732366936333,0.048,98442.0,98429.0,0.04217109]
[1732366936547,0.048,98440.0,98429.0,0.04217109]
[1732366936778,0.048,98438.0,98429.0,0.04217109]
[1732366936991,0.048,98436.0,98429.0,0.04217109]
[1732366937170,0.048,98434.0,98429.0,0.04217109]
[1732366937635,0.048,98432.0,98429.0,0.04217109]
[1732366938443,0.045578,98432.0,98429.0,0.04217109]
[1732366939319,0.043202,98432.0,98429.0,0.04217109]
[1732366939527,0.04259912,98432.0,98403.0,0.00801873]
[1732366939743,0.04259912,98432.0,98420.0,0.05466768]
[1732366939744,0.0814,98431.0,98420.0,0.05466768]
[1732366940645,0.0814,98431.0,98410.0,0.05466768]
[1732366940906,0.0814,98431.0,98420.0,0.04114742]
[1732366941162,0.00127004,98430.0,98420.0,0.05466768]
[1732366942300,0.04577127,98431.0,98420.0,0.05466768]
[1732366942520,0.048,98429.0,98420.0,0.05466768]
[1732366942749,0.048,98429.0,98421.0,0.15101597]
[1732366943237,0.0370543,98429.0,98421.0,0.15101597]
[1732366943740,0.0370543,98429.0,98421.0,0.00101593]
[1732366944389,0.0370543,98429.0,98420.0,0.09536247]
[1732366945158,0.0756,98428.0,98420.0,0.09536247]
[1732366948065,0.0756,98428.0,98418.0,0.05466768]
[1732366948524,0.0459594,98428.0,98418.0,0.05466768]
[1732366949679,0.0464,98427.0,98418.0,0.05466768]
[1732366950412,0.0464,98427.0,98417.0,0.05466768]
[1732366951597,0.0464,98427.0,98418.0,0.00076322]
[1732366953200,0.0464,98427.0,98410.0,0.04126587]
[1732366953486,0.0464,98427.0,98417.0,0.05466768]
[1732366954489,0.0464,98427.0,98418.0,0.0008605]
[1732366956918,0.0464,98427.0,98418.0,0.04097788]
[1732366957296,0.0464,98427.0,98418.0,0.0008605]
[1732366960627,0.001721,98443.0,98419.0,0.25201427]
[1732366960838,0.001721,98443.0,98430.0,0.05466768]
[1732366961459,0.001721,98443.0,98419.0,0.25201427]
[1732366963650,0.1248,98442.0,98419.0,0.25201427]
[1732366963862,0.00126985,98441.0,98419.0,0.25201427]
[1732366964431,0.0489,98439.0,98419.0,0.25201427]
[1732366964635,0.0489,98437.0,98420.0,0.05466768]
[1732366964846,0.0759,98434.0,98418.0,0.0008605]
[1732366965043,0.0759,98432.0,98418.0,0.0008605]
[1732366965675,0.0759,98432.0,98420.0,0.05466768]
[1732366968569,0.0759,98432.0,98418.0,0.0008605]
[1732366968774,0.0759,98432.0,98420.0,0.05466768]
[1732366970174,0.0759,98432.0,98418.0,0.0008605]
[1732366970588,0.01891897,98432.0,98418.0,0.0008605]
[1732366972403,0.01891897,98432.0,98420.0,0.05466768]
[1732366974077,0.01891897,98432.0,98420.0,0.03966768]
[1732366974290,0.01891897,98432.0,98418.0,0.0008605]
[1732366975444,0.01891897,98432.0,98412.0,0.023]
[1732366975646,0.01891897,98432.0,98413.0,0.10201427]
[1732366976611,0.01891897,98432.0,98420.0,0.05466768]
[1732366976814,0.01891897,98432.0,98413.0,0.10201427]
[1732366977892,0.01891897,98432.0,98414.0,0.15]
[1732366978105,0.01891897,98432.0,98414.0,0.10201427]
[1732366978340,0.01891897,98432.0,98415.0,0.15]
[1732366978543,0.01891897,98432.0,98418.0,0.0008607]
[1732366979354,0.02064037,98432.0,98418.0,0.0008607]
[1732366985387,0.01255931,98433.0,98418.0,0.0008607]
[1732366988484,0.0783,98432.0,98418.0,0.0008607]
[1732366990185,0.0783,98432.0,98412.0,0.023]
[1732366991314,0.0783,98432.0,98420.0,0.05466768]
[1732366992164,0.0800216,98432.0,98420.0,0.05466768]
[1732366993420,0.0800216,98432.0,98412.0,0.0238608]
[1732366994990,0.0300216,98432.0,98412.0,0.0238608]
[1732366996043,0.0300216,98432.0,98420.0,0.05466768]
[1732366998030,0.0481,98431.0,98420.0,0.05466768]
[1732366999087,0.03219647,98431.0,98420.0,0.05466768]
[1732366999945,0.02212705,98431.0,98420.0,0.05466768]
[1732367000355,0.0808,98430.0,98412.0,0.1738608]
[1732367000533,0.0808,98430.0,98412.0,0.0238608]
[1732367000754,0.0808,98430.0,98420.0,0.05466768]
[1732367005109,0.0808,98430.0,98421.0,0.15]
[1732367005313,0.0017216,98432.0,98421.0,0.045]
[1732367005784,0.0017216,98432.0,98421.0,0.195]
[1732367007496,0.0017216,98432.0,98421.0,0.23593473]
[1732367008062,0.0017216,98432.0,98422.0,0.02565218]
[1732367010106,0.0803,98437.0,98422.0,0.02565218]
[1732367010344,0.0803,98437.0,98427.0,0.05466768]
[1732367012769,0.001721,98443.0,98429.0,0.045]
[1732367013095,0.001721,98443.0,98432.0,0.05466768]
[1732367013669,0.0017212,98449.0,98432.0,0.05466768]
[1732367013863,0.0017212,98449.0,98439.0,0.05466768]
[1732367015093,0.002,98470.0,98440.0,0.045]
[1732367015309,0.10328391,98469.0,98460.0,0.05466768]
[1732367015519,0.10328391,98469.0,98441.0,0.0762]
[1732367015520,0.00126964,98469.0,98450.0,0.05466768]
[1732367015753,0.0803,98470.0,98450.0,0.05466768]
[1732367015950,0.08156955,98470.0,98450.0,0.05466768]
[1732367016183,0.00126955,98469.0,98450.0,0.05466768]
[1732367019228,0.00126955,98469.0,98450.0,0.09633076]
[1732367025935,0.00123809,98469.0,98450.0,0.09633076]
[1732367029347,0.00295829,98469.0,98450.0,0.09633076]
[1732367031055,0.00159684,98469.0,98450.0,0.09633076]
[1732367031259,0.00126955,98468.0,98450.0,0.09633076]
[1732367034182,0.049,98467.0,98450.0,0.09633076]
[1732367034388,0.00126956,98466.0,98450.0,0.09633076]
[1732367037677,0.00126956,98466.0,98451.0,0.15]
[1732367038952,0.00126956,98466.0,98450.0,0.09016308]
[1732367039163,0.00126956,98466.0,98451.0,0.15]
[1732367040652,0.00126956,98466.0,98450.0,0.05466768]
[1732367041231,0.04249832,98467.0,98450.0,0.05466768]
[1732367042717,0.04249832,98467.0,98450.0,0.05552758]
[1732367051193,0.002,98472.0,98450.0,0.05552758]
[1732367051194,0.0764,98480.0,98459.0,0.1252]
[1732367051434,0.2,98496.0,98459.0,0.1252]
[1732367051435,0.10201427,98479.0,98460.0,0.15]
[1732367055134,0.10201427,98479.0,98460.0,0.19029545]
[1732367055855,0.10201427,98479.0,98461.0,0.1291]
[1732367056082,0.10201427,98479.0,98462.0,0.15]
[1732367056311,0.10373407,98479.0,98462.0,0.15]
[1732367057514,0.0017198,98479.0,98462.0,0.15]
[1732367063208,0.0017198,98479.0,98464.0,0.0767]
[1732367063422,0.0017198,98479.0,98465.0,0.1967]
[1732367063636,0.0017198,98479.0,98466.0,0.1234]
[1732367063865,0.0017198,98479.0,98467.0,0.15]
[1732367064328,0.0017198,98479.0,98468.0,0.0467]
[1732367064906,0.0017198,98479.0,98470.0,0.0467]
[1732367065128,0.0017198,98479.0,98470.0,0.15]
[1732367065337,0.0016804,98485.0,98473.0,0.1234]
[1732367065541,0.0016802,98486.0,98476.0,0.05466768]
[1732367065763,0.0016802,98486.0,98477.0,0.2734]
[1732367070130,0.0016802,98486.0,98477.0,0.31523061]
[1732367081233,0.29999999,98497.0,98478.0,0.023]
[1732367081393,0.29999999,98497.0,98480.0,0.05466768]
[1732367083453,0.0017194,98486.0,98480.0,0.05466768]
[1732367083668,0.0017194,98486.0,98478.0,0.023]
[1732367083963,0.0017194,98486.0,98476.0,0.05466768]
[1732367084161,0.0017194,98486.0,98477.0,0.1325]
[1732367084590,0.29999999,98497.0,98477.0,0.1325]
[1732367086180,0.29999999,98497.0,98478.0,0.15]
[1732367086383,0.29999999,98497.0,98480.0,0.05466768]
[1732367090608,0.0461,98495.0,98480.0,0.05466768]
[1732367096145,0.29999999,98497.0,98484.0,0.05466768]
[1732367096570,0.25195546,98494.0,98484.0,0.05466768]
[1732367097285,0.25195546,98494.0,98484.0,0.05568299]
[1732367098296,0.13670207,98494.0,98486.0,0.15]
[1732367098502,0.13670207,98494.0,98488.0,0.15]
[1732367098709,0.13670207,98494.0,98489.0,0.15]
[1732367099381,0.27305206,98497.0,98489.0,0.15]
[1732367101906,0.27305206,98497.0,98480.0,0.0499]
[1732367101907,0.0472,98496.0,98481.0,0.15]
[1732367106836,0.0472,98496.0,98480.0,0.05466768]
[1732367108127,0.00015501,98501.0,98480.0,0.05466768]
[1732367109410,0.25,98504.0,98481.0,0.0495]
[1732367109639,0.25,98504.0,98481.0,0.1995]
[1732367109870,0.25,98504.0,98482.0,0.2276]
[1732367110076,0.25,98504.0,98482.0,0.22861529]
[1732367110762,0.25,98504.0,98491.0,0.0495]
[1732367114050,0.25,98504.0,98491.0,0.08993688]
[1732367115118,0.25,98504.0,98492.0,0.2276]
[1732367117223,0.25,98504.0,98493.0,0.1995]
[1732367117467,0.25,98504.0,98494.0,0.20466768]
[1732367117689,0.25,98504.0,98494.0,0.15]
[1732367118692,0.25,98504.0,98495.0,0.1271]
[1732367118933,0.25,98504.0,98496.0,0.15]
[1732367121554,0.29999999,98511.0,98510.0,0.44828]
[1732367121791,0.29999999,98511.0,98510.0,0.59828]
[1732367124642,0.29999999,98511.0,98510.0,0.63878844]
[1732367124843,0.29999999,98511.0,98510.0,0.3073846]
[1732367131260,0.10863983,98511.0,98510.0,0.3073846]
[1732367131504,0.11063983,98511.0,98510.0,0.3073846]
[1732367132179,0.11063983,98511.0,98510.0,0.3137113]
[1732367132837,0.10863983,98511.0,98510.0,0.3137113]
[1732367133387,0.10863983,98511.0,98510.0,0.3073846]
[1732367133797,0.10863983,98511.0,98510.0,0.32383402]
[1732367134117,0.10863983,98511.0,98510.0,0.3301608]
[1732367135370,0.11035903,98511.0,98510.0,0.3301608]
[1732367136206,0.11035903,98511.0,98510.0,0.34028349]
[1732367136612,0.11035903,98511.0,98510.0,0.35040617]
[1732367137582,0.0017192,98511.0,98510.0,0.32383397]
[1732367138223,0.0017192,98511.0,98510.0,0.31371128]
[1732367139231,0.0017192,98511.0,98510.0,0.3238339]
[1732367139479,0.0017192,98511.0,98510.0,0.32586272]
[1732367140001,0.0017192,98511.0,98510.0,0.32586248]
[1732367140158,0.0017192,98511.0,98510.0,0.31573999]
[1732367141150,0.25,98515.0,98511.0,0.15]
[1732367141356,0.10287427,98514.0,98512.0,0.00632657]
[1732367141561,0.10287427,98514.0,98513.0,0.00632657]
[1732367142001,0.10287427,98514.0,98511.0,0.15]
[1732367142208,0.10287427,98514.0,98512.0,0.00632631]
[1732367142411,0.10287427,98514.0,98513.0,0.00632631]
[1732367144183,0.23599811,98515.0,98510.0,0.04253726]
[1732367144344,0.23599811,98515.0,98513.0,0.01644841]
[1732367144693,0.23599811,98515.0,98514.0,0.00632631]
[1732367144904,0.23441111,98515.0,98514.0,0.01644841]
[1732367145110,0.23400832,98515.0,98514.0,0.01644841]
[1732367145863,0.23400832,98515.0,98514.0,0.09734841]
[1732367147136,0.23400832,98515.0,98514.0,0.0809]
[1732367147353,0.23400832,98515.0,98514.0,0.08722627]
[1732367147564,0.23400832,98515.0,98514.0,0.0973483]
[1732367148383,0.16445604,98515.0,98514.0,0.0973483]
[1732367150683,0.16445604,98515.0,98514.0,0.09734777]
[1732367150889,0.09508449,98515.0,98514.0,0.09734777]
[1732367151091,0.03124263,98515.0,98514.0,0.09734777]
[1732367151304,0.03124263,98515.0,98514.0,0.25999967]
[1732367153336,0.03040981,98515.0,98514.0,0.02909967]
[1732367153838,0.03040981,98515.0,98514.0,0.0126519]
[1732367154090,0.03040981,98515.0,98514.0,0.04175382]
[1732367154336,0.03040981,98515.0,98514.0,0.03542763]
[1732367157070,0.29815195,98525.0,98515.0,0.28233536]
[1732367157283,0.00041581,98536.0,98518.0,0.15]
[1732367157485,0.00041581,98536.0,98521.0,0.1962]
[1732367157699,0.00041581,98536.0,98522.0,0.01644643]
[1732367157942,0.00041581,98536.0,98520.0,0.05466768]
[1732367157943,0.00041581,98536.0,98526.0,0.15]
[1732367158150,0.00041581,98536.0,98527.0,0.01644643]
[1732367158357,0.00041581,98536.0,98528.0,0.01644643]
[1732367158561,0.00041581,98536.0,98529.0,0.14354643]
[1732367158765,0.00041581,98536.0,98530.0,0.16012088]
[1732367158971,0.00041581,98536.0,98532.0,0.15]
[1732367159183,0.00041581,98536.0,98534.0,0.15]
[1732367159861,0.00041581,98536.0,98535.0,0.01011997]
[1732367160947,0.00213621,98536.0,98535.0,0.02909605]
[1732367162771,0.00213621,98536.0,98535.0,0.02909479]
[1732367163715,0.10415048,98536.0,98535.0,0.02909479]
[1732367164442,0.10245502,98536.0,98535.0,0.02909479]
[1732367164682,0.10445502,98536.0,98535.0,0.02909479]
[1732367164929,0.22995502,98536.0,98535.0,0.02909479]
[1732367166369,0.002,98531.0,98530.0,0.04178568]
[1732367166631,0.10201427,98535.0,98530.0,0.22088857]
[1732367166870,0.10201427,98535.0,98531.0,0.02910289]
[1732367167113,0.10201427,98535.0,98532.0,0.02910289]
[1732367167312,0.07038163,98535.0,98533.0,0.01644946]
[1732367167472,0.07038163,98535.0,98534.0,0.01644946]
[1732367167905,0.07038163,98535.0,98534.0,0.02910289]
[1732367169507,0.27391249,98539.0,98534.0,0.02910289]
[1732367169744,0.27391249,98539.0,98535.0,0.02910289]
[1732367169923,0.27391249,98539.0,98536.0,0.02910289]
[1732367170113,0.10201427,98538.0,98500.0,0.00778002]
[1732367170321,0.27391249,98539.0,98503.0,0.023]
[1732367170586,0.37592676,98539.0,98505.0,0.023]
[1732367170826,0.37592676,98539.0,98507.0,0.023]
[1732367170971,0.37592676,98539.0,98509.0,0.023]
[1732367171175,0.27391249,98539.0,98531.0,0.18049095]
[1732367172272,0.27391249,98539.0,98532.0,0.15]
[1732367172519,0.27391249,98539.0,98534.0,0.0008601]
[1732367172706,0.0017202,98536.0,98534.0,0.18135105]
[1732367172912,0.0017202,98536.0,98534.0,0.0008601]
[1732367174934,0.27391249,98539.0,98534.0,0.04263809]
[1732367175134,0.27391249,98539.0,98534.0,0.0008601]
[1732367177324,0.24228638,98539.0,98534.0,0.0008601]
[1732367177530,0.15440238,98539.0,98534.0,0.0008601]
[1732367177914,0.15440238,98539.0,98538.0,0.37550117]
[1732367178110,0.15440238,98539.0,98538.0,0.15]
[1732367178314,0.15440238,98539.0,98538.0,0.16264978]
[1732367179136,0.15440238,98539.0,98535.0,0.0506223]
[1732367179349,0.15440238,98539.0,98535.0,0.0482]
[1732367180222,0.15440238,98539.0,98536.0,0.01011962]
[1732367180442,0.15440238,98539.0,98537.0,0.01011962]
[1732367180658,0.23070238,98539.0,98538.0,0.2356009]
[1732367180935,0.23070238,98539.0,98538.0,0.01011962]
[1732367181149,0.33271665,98539.0,98538.0,0.01011962]
[1732367181383,0.33471665,98539.0,98538.0,0.01011962]
[1732367182259,0.33471665,98539.0,98538.0,0.01644591]
[1732367183579,0.33271665,98539.0,98538.0,0.01644591]
[1732367183989,0.33271665,98539.0,98534.0,0.0008601]
[1732367184202,0.0774,98537.0,98534.0,0.0008601]
[1732367184406,0.0794,98535.0,98534.0,0.0008601]
[1732367184621,0.18141427,98535.0,98534.0,0.0008601]
[1732367184821,0.22831427,98535.0,98534.0,0.0008601]
[1732367185872,0.22831427,98535.0,98534.0,0.0911166]
[1732367186242,0.002,98527.0,98523.0,0.22564127]
[1732367186446,0.0794,98524.0,98523.0,0.22564127]
[1732367186653,0.18141427,98524.0,98523.0,0.22564127]
[1732367187015,0.17941427,98524.0,98523.0,0.22564127]
[1732367187243,0.17941427,98524.0,98523.0,0.23829596]
[1732367188189,0.17941427,98524.0,98523.0,0.2794742]
[1732367188793,0.0774,98524.0,98523.0,0.26681951]
[1732367188992,0.17941427,98524.0,98523.0,0.26681951]
[1732367189776,0.17941427,98524.0,98523.0,0.27947418]
[1732367191027,0.17941427,98524.0,98523.0,0.2343119]
[1732367191601,0.14778078,98524.0,98523.0,0.2343119]
[1732367191804,0.14778078,98524.0,98523.0,0.23431338]
[1732367192009,0.1375401,98524.0,98523.0,0.23431259]
[1732367192211,0.1375401,98524.0,98523.0,0.05383212]
[1732367192427,0.1375401,98524.0,98523.0,0.38431321]
[1732367192806,0.1358733,98524.0,98523.0,0.20383212]
[1732367193831,0.1358733,98524.0,98523.0,0.05383212]
[1732367194036,0.1358733,98524.0,98523.0,0.06395488]
[1732367196079,0.1358733,98524.0,98523.0,0.0702816]
[1732367196977,0.1358733,98524.0,98523.0,0.0711416]
[1732367200523,0.1358733,98524.0,98521.0,0.18311835]
[1732367200760,0.10201427,98523.0,98522.0,0.02910268]
[1732367200998,0.10201427,98523.0,98522.0,0.03608743]
[1732367201234,0.10201427,98523.0,98522.0,0.02910268]
[1732367201679,0.10401427,98523.0,98522.0,0.01644934]
[1732367201860,0.002,98521.0,98506.0,0.04199278]
[1732367202087,0.08289279,98516.0,98498.0,0.0757]
[1732367202308,0.10201427,98515.0,98511.0,0.0068329]
[1732367202869,0.10201427,98515.0,98509.0,0.0068329]
[1732367203706,0.10201427,98515.0,98506.0,0.0068329]
[1732367204114,0.10201427,98515.0,98511.0,0.18044343]
[1732367204317,0.10201427,98515.0,98512.0,0.15]
[1732367205904,0.10201427,98515.0,98514.0,0.28533086]
[1732367206662,0.10201427,98515.0,98514.0,0.42065717]
[1732367207290,0.10201427,98515.0,98514.0,0.42066468]
[1732367207875,0.10201427,98515.0,98514.0,0.28533086]
[1732367209340,0.202,98514.0,98511.0,0.18043508]
[1732367209557,0.42641427,98512.0,98511.0,0.18043508]
[1732367209776,0.52521653,98512.0,98511.0,0.18043508]
[1732367211796,0.52521653,98512.0,98505.0,0.2255569]
[1732367211797,0.5244,98506.0,98505.0,0.2255569]
[1732367212029,0.0778,98494.0,98493.0,0.27065262]
[1732367212267,0.27403453,98494.0,98493.0,0.27065262]
[1732367213617,0.002,98493.0,98492.0,0.0008596]
[1732367213868,0.1990375,98493.0,98492.0,0.0008596]
[1732367214276,0.1990375,98493.0,98492.0,0.00718902]
[1732367216496,0.1990375,98493.0,98492.0,0.0008596]
[1732367218161,0.1990375,98493.0,98492.0,0.0071891]
[1732367218412,0.1990375,98493.0,98492.0,0.0008596]
[1732367218901,0.1990375,98493.0,98492.0,0.00718911]
[1732367220308,0.1970375,98493.0,98492.0,0.00718911]
[1732367220568,0.10201427,98493.0,98492.0,0.00718911]
[1732367223201,0.10201427,98493.0,98492.0,0.03018911]
[1732367223426,0.10201427,98493.0,98492.0,0.04031553]
[1732367223942,0.10201427,98493.0,98475.0,0.04018222]
[1732367224411,0.10201427,98493.0,98475.0,0.08118518]
[1732367224676,0.10201427,98493.0,98475.0,0.04018222]
[1732367224953,0.10201427,98493.0,98478.0,0.00683139]
[1732367225409,0.10201427,98493.0,98479.0,0.00683139]
[1732367225871,0.10201427,98493.0,98479.0,0.023]
[1732367226116,0.10201427,98493.0,98488.0,0.09018735]
[1732367226650,0.0466,98508.0,98488.0,0.09018735]
[1732367226651,0.08297219,98510.0,98489.0,0.15]
[1732367226883,0.08297219,98510.0,98491.0,0.15]
[1732367226884,0.10201427,98509.0,98491.0,0.15]
[1732367227113,0.10201427,98509.0,98492.0,0.01265666]
[1732367227344,0.10201427,98509.0,98497.0,0.09018735]
[1732367227832,0.10201427,98509.0,98498.0,0.09018735]
[1732367228344,0.10201427,98509.0,98499.0,0.15]
[1732367228571,0.10201427,98509.0,98500.0,0.01265623]
[1732367228804,0.10201427,98509.0,98501.0,0.01265623]
[1732367229030,0.10201427,98509.0,98500.0,0.01265623]
[1732367229265,0.10201427,98509.0,98501.0,0.01265623]
[1732367229490,0.10201427,98509.0,98502.0,0.01948648]
[1732367229728,0.0836204,98521.0,98504.0,0.15683025]
[1732367229729,0.0017204,98521.0,98504.0,0.15683025]
[1732367229961,0.18498646,98520.0,98505.0,0.023]
[1732367231711,0.18498646,98520.0,98504.0,0.15]
[1732367232888,0.26795865,98520.0,98504.0,0.15]
[1732367233083,0.18498646,98520.0,98504.0,0.15]
[1732367233739,0.002,98518.0,98504.0,0.15]
[1732367234003,0.10201427,98517.0,98512.0,0.00677777]
[1732367234179,0.10201427,98517.0,98513.0,0.01012393]
[1732367234395,0.10201427,98517.0,98514.0,0.01012393]
[1732367234597,0.10201427,98517.0,98515.0,0.01012393]
[1732367234799,0.10201427,98517.0,98516.0,0.01012393]
[1732367235803,0.10201427,98517.0,98516.0,0.01645157]
[1732367236881,0.10201427,98517.0,98516.0,0.16645157]
[1732367237293,0.10201427,98517.0,98516.0,0.20750923]
[1732367238013,0.10201427,98517.0,98516.0,0.19105766]
[1732367238243,0.10201427,98517.0,98516.0,0.19738527]
[1732367240555,0.10201427,98517.0,98516.0,0.28756872]
[1732367240768,0.10201427,98517.0,98516.0,0.28756877]
[1732367241224,0.10201427,98517.0,98516.0,0.28757629]
[1732367241930,0.10201427,98517.0,98512.0,0.15]
[1732367242141,0.10201427,98517.0,98510.0,0.09019183]
[1732367242142,0.10201427,98517.0,98514.0,0.13527518]
[1732367243316,0.10201427,98517.0,98514.0,0.10385101]
[1732367246729,0.0017204,98521.0,98514.0,0.10385101]
[1732367246924,0.10201427,98520.0,98514.0,0.10385101]
[1732367248171,0.10201427,98520.0,98515.0,0.16012327]
[1732367248372,0.10201427,98520.0,98515.0,0.15]
[1732367248583,0.0017212,98517.0,98516.0,0.01012329]
[1732367249424,0.0017212,98517.0,98515.0,0.15]
[1732367249666,0.0017212,98517.0,98516.0,0.01012315]
[1732367250647,0.10373547,98517.0,98516.0,0.01012315]
[1732367251277,0.10373547,98517.0,98515.0,0.15]
[1732367251488,0.10201427,98516.0,98515.0,0.15]
[1732367252282,0.10201427,98516.0,98511.0,0.04021377]
[1732367252460,0.10201427,98516.0,98506.0,0.1957]
[1732367253750,0.10201427,98516.0,98501.0,0.0799]
[1732367254494,0.10201427,98516.0,98501.0,0.12203386]
[1732367254948,0.10201427,98516.0,98507.0,0.00632704]
[1732367255775,0.10201427,98516.0,98502.0,0.15]
[1732367259016,0.10201427,98516.0,98507.0,0.1353091]
[1732367259225,0.10201427,98516.0,98509.0,0.2853091]
[1732367259613,0.10201427,98516.0,98509.0,0.1353091]
[1732367260023,0.10201427,98516.0,98509.0,0.15]
[1732367260221,0.10201427,98516.0,98506.0,0.2853091]
[1732367260432,0.10201427,98516.0,98510.0,0.040535]
[1732367261678,0.10201427,98516.0,98510.0,0.0413952]
[1732367265740,0.10201427,98516.0,98514.0,0.15]
[1732367267177,0.10201427,98516.0,98513.0,0.3307353]
[1732367268028,0.10201427,98516.0,98511.0,0.15]
[1732367268234,0.10201427,98516.0,98510.0,0.0413952]
[1732367270632,0.10201427,98516.0,98501.0,0.12203386]
[1732367270810,0.10201427,98516.0,98502.0,0.040534]
[1732367271267,0.10201427,98516.0,98501.0,0.12203386]
[1732367271481,0.10201427,98516.0,98501.0,0.16256786]
[1732367273994,0.10201427,98516.0,98501.0,0.16342806]
[1732367276760,0.10201427,98516.0,98502.0,0.15]
[1732367277696,0.10201427,98516.0,98514.0,0.22626532]
[1732367278121,0.10201427,98516.0,98502.0,0.15]
[1732367279460,0.0017212,98517.0,98503.0,0.023]
[1732367280318,0.0017212,98517.0,98505.0,0.173]
[1732367280527,0.0017212,98517.0,98506.0,0.0453]
[1732367280696,0.0017212,98517.0,98507.0,0.023]
[1732367283288,0.0017212,98517.0,98516.0,0.42131576]
[1732367283719,0.0017212,98517.0,98516.0,0.15]
[1732367284374,0.0017212,98517.0,98513.0,0.15]
[1732367284791,0.0017212,98517.0,98512.0,0.15]
[1732367284975,0.0017212,98517.0,98512.0,0.42131576]
[1732367286182,0.0017212,98517.0,98512.0,0.4616521]